Cogmind - Beta 16 @@@ ROGUE MODE // 2025.11.23 @ 18:38:19 Player: ClassActJerk Result: Self-destructed Performance ------------- Evolutions (2) 1000 Regions Visited (5) 1000 Robots Destroyed (28) 140 Value Destroyed (531) 531 Prototype IDs (1) 20 Alien Tech Used (0) 0 Bonus (200) 200 TOTAL SCORE: 2891 Bonus ------- Pacifist 200 Cogmind --------- Core Integrity 39/550 Matter 6/300 Energy 100/100 System Corruption 0% Temperature Cool (0) Movement Core (50) Location -8/Materials Parts ------- > --- POWER (1) -------- (None) > --- PROPULSION (4) --- (None) > --- UTILITY (3) ------ (None) > --- WEAPON (3) ------- (None) > --- INVENTORY (5) ---- Airjet Advanced Beam Rifle Faulty Advanced Beam Rifle Mini Grenade Launcher Mining Laser Peak State ------------ > --- POWER ------------ Reinforced Ion Engine > --- PROPULSION ------- (None) > --- UTILITY ---------- Improved Heat Sink Medium Matter Pod > --- WEAPON ----------- Mini Grenade Launcher Mini Grenade Launcher Mini Grenade Launcher > --- INVENTORY -------- Airjet Mini Grenade Launcher Mining Laser [Rating: 12] Favorites ----------- Power Reinforced Ion Engine Engine Reinforced Ion Engine Propulsion Light Treads Treads Light Treads Leg Aluminum Leg Utility Medium Matter Pod Device Improved Heat Sink Storage Medium Matter Pod Weapon Mini Grenade Launcher Energy Cannon Advanced Beam Cannon Launcher Mini Grenade Launcher Build | -11 -10 -10 -9 -9 -8 ------- Run | Yrd Mat Min Mat Min Mat Slots Evolved 4 | . . . 2 . 2 Power . | . . . . . . Propulsion 2 | . . . 2 . . Utility 1 | . . . . . 1 Weapon 1 | . . . . . 1 Parts Attached 12 | 2 . . 6 1 3 Power 2 | . . . 2 . . Engine 2 | . . . 2 . . Core . | . . . . . . Reactor . | . . . . . . Propulsion 4 | 2 . . 2 . . Treads 2 | . . . 2 . . Leg 2 | 2 . . . . . Wheel . | . . . . . . Hover . | . . . . . . Flight . | . . . . . . Utility 2 | . . . . 1 1 Device 1 | . . . . . 1 Storage 1 | . . . . 1 . Processor . | . . . . . . Hackware . | . . . . . . Protection . | . . . . . . Artifact . | . . . . . . Weapon 4 | . . . 2 . 2 Energy Gun . | . . . . . . Energy Cannon 1 | . . . . . 1 Ballistic Gun . | . . . . . . Ballistic Cannon . | . . . . . . Launcher 3 | . . . 2 . 1 Special Weapon . | . . . . . . Impact Weapon . | . . . . . . Slashing Weapon . | . . . . . . Piercing Weapon . | . . . . . . Special Melee Weapon . | . . . . . . Unidentified Prototypes 1 | . . . . . 1 Parts Lost 5 | . . . . 2 3 Power 1 | . . . . . 1 Propulsion 2 | . . . . 2 . Utility . | . . . . . . Weapon 2 | . . . . . 2 Highest Loss Streak 2 | . . . . 1 2 To Critical Strikes . | . . . . . . Average Backups 2 | . . . 3 3 3 Power . | . . . . . . Propulsion . | . . . . . . Utility . | . . . . . . Weapon 2 | . . . 2 3 2 Tool/Special . | . . . . . . Unused Backups 5 | . . . . . 5 Power . | . . . . . . Propulsion 1 | . . . . . 1 Utility . | . . . . . . Weapon 4 | . . . . . 4 Tool/Special . | . . . . . . Average Slot Usage (%) 38 | . . . 34 46 42 Engine 7 | . . . 5 11 7 Treads 4 | . . . 8 6 . Storage 5 | . . . . 6 8 Launcher 20 | . . . 19 22 24 Peak Build Rating 12 | 2 . . 8 8 12 Average Rating 6 | . . . 5 7 8 On Entrance 2 | . . . . 8 7 Avg Prop Armor Cover (%) . | . . . . . . Naked Turns 105 | . 22 53 7 . 23 Heaviest Build 16 | . . . 12 14 16 Greatest Support 40 | 3 3 3 40 40 3 Greatest Overweight (x) 5 | . . . 3 4 5 Average Overweight (x) 1 | . . . . 2 2 Largest Inventory Capacity 5 | 5 5 5 5 5 5 Average Capacity 5 | 5 5 5 5 5 5 Most Carried 5 | 2 . 1 5 4 5 Average Carried 3 | . . . 3 3 3 Final Capacity 5 | 5 5 5 5 5 5 Final Carried 5 | . . 1 4 3 5 Class Distribution -------------------- 72% | Mutant 27% | Bomber Dominant Class ---------------- Mutant | -10/Materials Mutant | -10/Mines Mutant | -9/Materials Mutant | -9/Mines Bomber | -8/Materials Resources | -11 -10 -10 -9 -9 -8 ----------- Run | Yrd Mat Min Mat Min Mat Matter Collected 351 | 100 . . 169 1 81 Remotely . | . . . . . . Salvage Created 491 | . . . 250 20 221 Parts 31 | . . . 18 5 8 Haulers Intercepted 3 | . . . 1 . 2 Recyclers Shooed . | . . . . . . Parts Field Recycled . | . . . . . . Retrieved Matter . | . . . . . . Parts Self-Destructed . | . . . . . . Prevented . | . . . . . . Parts Restored . | . . . . . . Kills | -11 -10 -10 -9 -9 -8 ------- Run | Yrd Mat Min Mat Min Mat Combat Hostiles Destroyed 21 | . . . 11 8 2 AOE 21 | . . . 11 8 2 Classes Destroyed 8 | . . . 7 . 1 Worker 1 | . . . 1 . . Builder 2 | . . . 1 . 1 Hauler 3 | . . . 1 . 2 Recycler 1 | . . . . . 1 Swarmer 12 | . . . 4 8 . Grunt 5 | . . . 3 . 2 Brawler 2 | . . . 2 . . Sentry 2 | . . . 2 . . Best Kill Streak 8 | . . . 8 4 6 Combat Bots Only 6 | . . . 6 4 2 Max Kills in Single Turn 6 | . . . 4 3 6 Gunslinging . | . . . . . . Exploded 4 | . . . 4 3 2 Melee . | . . . . . . Uniques/NPCs Destroyed . | . . . . . . Combat | -11 -10 -10 -9 -9 -8 -------- Run | Yrd Mat Min Mat Min Mat Hostile Shots Fired 149 | . . 33 21 21 74 Missed 56 | . . 10 10 10 26 Hits 93 | . . 23 11 11 48 Projectile 93 | . . 23 11 11 48 Critical Strikes 1 | . . . 1 . . Damage Taken 1326 | . . 184 257 202 683 Core 904 | . . 184 99 110 511 Absorbed by Shields . | . . . . . . Core Remaining (%) 57 | 100 . 26 . 47 . Volleys Fired 16 | . . . 9 4 3 Largest 3 | . . . 2 2 3 Hottest 90 | . . . 60 60 90 Shots Fired 35 | . . . 18 8 9 Gun . | . . . . . . Cannon . | . . . . . . Launcher 35 | . . . 18 8 9 Special . | . . . . . . Kinetic . | . . . . . . Thermal . | . . . . . . Explosive 35 | . . . 18 8 9 Electromagnetic . | . . . . . . Robot Hit Streak 5 | . . . 5 1 4 Robot Miss Streak 2 | . . . 2 2 1 Penetration Max . | . . . . . . Secondary Targets . | . . . . . . Shots Hit Robots 19 | . . . 11 2 6 Core Hits 45 | . . . 28 7 10 Critical Kills . | . . . . . . Critical Parts Destroyed . | . . . . . . Critical Strikes . | . . . . . . Melee Attacks . | . . . . . . Impact . | . . . . . . Slashing . | . . . . . . Piercing . | . . . . . . Sneak Attacks . | . . . . . . Combat Hostiles . | . . . . . . Follow-up Attacks . | . . . . . . Damage Inflicted 2322 | . . . 1109 566 647 Guns . | . . . . . . Cannons . | . . . . . . Explosions 2322 | . . . 1109 566 647 Melee . | . . . . . . Ramming . | . . . . . . Kinetic . | . . . . . . Thermal . | . . . . . . Explosive 2322 | . . . 1109 566 647 Electromagnetic . | . . . . . . Impact . | . . . . . . Slashing . | . . . . . . Piercing . | . . . . . . Highest Corruption . | . . . . . . Average Corruption . | . . . . . . Corruption Purged . | . . . . . . Corruption Blocked . | . . . . . . Overload Shots . | . . . . . . Overflow Damage 121 | . . . 13 81 27 Projectiles . | . . . . . . Explosions 121 | . . . 13 81 27 Melee . | . . . . . . Knockbacks . | . . . . . . Impact . | . . . . . . Kinetic . | . . . . . . Secondary . | . . . . . . Self-Inflicted Damage 262 | . . . 138 37 87 Shots 10 | . . . 6 1 3 Rammed . | . . . . . . Targets Rammed . | . . . . . . Kicked . | . . . . . . Crushed . | . . . . . . Highest Temperature 45 | . . . 45 6 3 Average Temperature 10 | . . . 15 3 3 Received Heat Transfer 222 | . . . 51 . 171 Siege Activations . | . . . . . . Martial Activations . | . . . . . . Shielding Activations . | . . . . . . Robots Disrupted . | . . . . . . Combat Hostiles . | . . . . . . Robots Corrupted . | . . . . . . Combat Hostiles . | . . . . . . Parts Fried . | . . . . . . Impact Corruptions . | . . . . . . Robots Melted . | . . . . . . Combat Hostiles . | . . . . . . Parts Melted . | . . . . . . Heat Transferred . | . . . . . . Parts Sabotaged . | . . . . . . Parts Stolen . | . . . . . . Parts Stripped . | . . . . . . Power Chain Reactions . | . . . . . . Alert | -11 -10 -10 -9 -9 -8 ------- Run | Yrd Mat Min Mat Min Mat Maximum Alert Level 1 | . . . 1 1 . Low Security (%) 66 | 100 100 100 69 29 100 Level 1 33 | . . . 30 70 . Level 2 . | . . . . . . Level 3 . | . . . . . . Level 4 . | . . . . . . Level 5 . | . . . . . . High Security . | . . . . . . Max Security . | . . . . . . Peak Influence 341 | . . 50 341 313 118 Initial 129 | . . . 15 129 53 Average 127 | . . 18 148 225 30 Influence Increases 819 | . . 60 391 234 134 Destroy 0b10 Robot/C 420 | . . . 220 160 40 Destroy 0b10 Robot/NC 35 | . . . 15 . 20 Destroy Leader 76 | . . . 52 20 4 Disable Machine 45 | . . . 15 15 15 Destroy Structure 168 | . . . 89 39 40 Lose Combat Pursuer 75 | . . 60 . . 15 Influence Decreases 765 | . . 20 100 428 217 Entered New Map 311 | . . . 25 202 84 Time Decay 404 | . . 20 75 206 103 Lost Part 50 | . . . . 20 30 Squads Dispatched 5 | . 1 . 1 . 3 Investigation . | . . . . . . Extermination . | . . . . . . Reinforcement 5 | . 1 . 1 . 3 Assault . | . . . . . . Garrison . | . . . . . . Intercept . | . . . . . . Searches Triggered . | . . . . . . Construction Impeded . | . . . . . . Haulers Reinforced . | . . . . . . Active Scanning Responses . | . . . . . . Cargo Convoy Interrupts . | . . . . . . Stealth | -11 -10 -10 -9 -9 -8 --------- Run | Yrd Mat Min Mat Min Mat Distress Signals 3 | . . . 1 . 2 Communications Jammed . | . . . . . . Distress Signals . | . . . . . . Times Spotted 51 | . 2 8 11 5 25 Peak Tracking Total 16 | . 2 7 4 4 16 Tactical Retreats 3 | . . 2 . . 1 Traps | -11 -10 -10 -9 -9 -8 ------- Run | Yrd Mat Min Mat Min Mat Traps Triggered 1 | . . . . 1 . Indirectly . | . . . . . . Trap Hack Attempts . | . . . . . . Triggered . | . . . . . . Disarmed . | . . . . . . Reprogrammed . | . . . . . . Reused . | . . . . . . Traps Extracted . | . . . . . . Installed . | . . . . . . Triggered . | . . . . . . Machines | -11 -10 -10 -9 -9 -8 ---------- Run | Yrd Mat Min Mat Min Mat Machines Disabled 3 | . . . 1 1 1 Max in Single Turn 1 | . . . 1 1 1 Machines Repaired . | . . . . . . Machines Dismantled . | . . . . . . Machines Sabotaged . | . . . . . . Overloaded Fab Kills . | . . . . . . Hacking | -11 -10 -10 -9 -9 -8 --------- Run | Yrd Mat Min Mat Min Mat Machines Accessed 1 | . . . . 1 . Terminals . | . . . . . . Fabricators . | . . . . . . Repair Stations . | . . . . . . Recycling Units . | . . . . . . Scanalyzers . | . . . . . . Garrison Access . | . . . . . . Total Hacks 1 | . . . . 1 . Successful 1 | . . . . 1 . Failed . | . . . . . . Catastrophic . | . . . . . . Database Lockouts . | . . . . . . Manual . | . . . . . . Terminals . | . . . . . . Fabricators . | . . . . . . Repair Stations . | . . . . . . Recycling Units . | . . . . . . Scanalyzers . | . . . . . . Garrison Access . | . . . . . . Terminal Hacks 1 | . . . . 1 . Open Door 1 | . . . . 1 . Fabricator Hacks . | . . . . . . Repair Station Hacks . | . . . . . . Recycling Unit Hacks . | . . . . . . Scanalyzer . | . . . . . . Garrison Access Hacks . | . . . . . . Unauthorized Hacks . | . . . . . . Terminals . | . . . . . . Fabricators . | . . . . . . Repair Stations . | . . . . . . Recycling Units . | . . . . . . Scanalyzers . | . . . . . . Garrison Access . | . . . . . . Data Cores Recovered . | . . . . . . Used . | . . . . . . Hacking Detections . | . . . . . . Full Trace Events . | . . . . . . Feedback Events . | . . . . . . Feedback Blocked . | . . . . . . Robot Schematics Acquired . | . . . . . . Robots Built . | . . . . . . Authchips . | . . . . . . Time . | . . . . . . Total Robot Build Rating . | . . . . . . Part Schematics Acquired . | . . . . . . Parts Built . | . . . . . . Authchips . | . . . . . . Time . | . . . . . . Total Part Build Rating . | . . . . . . Part Studies Acquired . | . . . . . . Parts Repaired . | . . . . . . Time . | . . . . . . Parts Recycled . | . . . . . . Recycled Matter . | . . . . . . Retrieved Matter . | . . . . . . Retrieved Components . | . . . . . . Parts Scanalyzed . | . . . . . . Part Schematics Acquired . | . . . . . . Parts Damaged . | . . . . . . Bothacking | -11 -10 -10 -9 -9 -8 ------------ Run | Yrd Mat Min Mat Min Mat Used RIF Installer . | . . . . . . Robots Hacked . | . . . . . . Non-combat . | . . . . . . Combat . | . . . . . . Robot Hacks Applied . | . . . . . . Relay Couplers Released . | . . . . . . Fabnet Peak Effective % . | . . . . . . Robots Rewired . | . . . . . . Allies Hacked . | . . . . . . Hacks Repelled . | . . . . . . Allies | -11 -10 -10 -9 -9 -8 -------- Run | Yrd Mat Min Mat Min Mat Total Allies . | . . . . . . Largest Group . | . . . . . . Highest-Rated Group . | . . . . . . Highest-Rated Ally . | . . . . . . Total Orders . | . . . . . . Ally Attacks . | . . . . . . Total Damage . | . . . . . . Kills . | . . . . . . Allies Corrupted . | . . . . . . Allies Melted . | . . . . . . Intel | -11 -10 -10 -9 -9 -8 ------- Run | Yrd Mat Min Mat Min Mat Active Infowar (turns) . | . . . . . . Robot Analysis Total . | . . . . . . Derelict Logs Recovered 2 | . . 1 . 1 . Drone Launches . | . . . . . . Drone Recoveries . | . . . . . . Exploration | -11 -10 -10 -9 -9 -8 ------------- Run | Yrd Mat Min Mat Min Mat Turns Passed 1074 | 18 22 53 193 428 360 Spaces Moved 643 | 26 43 88 85 202 199 Core 506 | 26 43 88 44 106 199 Treads 137 | . . . 41 96 . Legs . | . . . . . . Wheels . | . . . . . . Hover . | . . . . . . Flight . | . . . . . . Fastest Speed 50 | 50 50 50 50 160 50 Average Speed 144 | 50 50 50 113 206 170 Slowest Speed 300 | 50 50 50 200 250 300 Overloaded Moves . | . . . . . . Propulsion Burnouts . | . . . . . . Robots Hopped . | . . . . . . Potential Cave-ins . | . . . . . . Cave-ins Triggered . | . . . . . . Exploration Rate (%) 20 | 3 16 30 11 41 22 Regions Visited 5 Branch Regions 2 Pre-discovered Areas . | . . . . . . Known Exits Taken . | . . . . . . Unknown Exits Taken 5 | 1 1 1 1 1 . Scrap Searched 1 | . . 1 . . . Spaces Dug . | . . . . . . Terrain Destroyed 242 | . . . 135 60 47 Melee . | . . . . . . Projectile . | . . . . . . AOE 242 | . . . 135 60 47 Terrain Rammed . | . . . . . . Walls Destroyed . | . . . . . . Machines Disabled . | . . . . . . Actions | -11 -10 -10 -9 -9 -8 --------- Run | Yrd Mat Min Mat Min Mat Total 753 | 31 42 96 164 206 214 Wait 66 | . . 8 57 . 1 Move 638 | 25 42 87 84 201 199 Hop . | . . . . . . Pick Up 14 | 2 . 1 7 . 4 Fast Attach 2 | . . . 1 . 1 Attach 9 | 2 . . 4 1 2 Detach . | . . . . . . Swap 1 | . . . 1 . . Drop 7 | 2 . . 1 . 4 Fire 16 | . . . 9 4 3 Melee . | . . . . . . Ram . | . . . . . . Kick . | . . . . . . Crush . | . . . . . . Escape Stasis . | . . . . . . Rewire . | . . . . . . Trap . | . . . . . . Miscellaneous . | . . . . . . Route ------- -11/Scrapyard -10/Materials -10/Mines -9/Materials -9/Mines -8/Materials History --------- Turn | Location | Event 2 | -11/Scrapyard | Discovered new exit (range 16) 19 | -11/Scrapyard | Entered Materials 33 | -10/Materials | Discovered new exit (range 15) 41 | -10/Materials | Entered Mines 81 | -10/Mines | Core integrity fell below 50% 89 | -10/Mines | Discovered new exit (range 14) 94 | -10/Mines | Entered Materials 94 | -9/Materials | Evolved 2 slots: Propulsion x2 272 | -9/Materials | Discovered new exit (range 6) 287 | -9/Materials | Entered Mines 300 | -9/Mines | Build established: Mutant 356 | -9/Mines | Met a Derelict bent on vengeance 359 | -9/Mines | Learned location of 1 exit from Lower Caves 448 | -9/Mines | Met a Derelict who couldn't figure out how to use a Trap Extractor 452 | -9/Mines | Core integrity fell below 50% 680 | -9/Mines | Discovered new exit (range 14) 715 | -9/Mines | Entered Materials 715 | -8/Materials | Evolved 2 slots: Utility x1, Weapon x1 1058 | -8/Materials | Core integrity fell below 50% 1065 | -8/Materials | Core integrity fell below 20% 1075 | -8/Materials | Self-destructed Last Messages --------------- 01015_ The unstable cave ceiling collapses. 01015_ U-05 Engineer lays Concrete. 01019_ R-06 Scavenger collects Prototype Hover Unit. 01022_ U-05 Engineer lays Concrete. 01033_ K-01 Serf collects debris. 01044_ Penetrated by Slug. 01044_ Mni. Grenade Launcher destroyed. 01045_ K-01 Serf collects debris. 01051_ Dropped Mni. Grenade Launcher. 01051_ Dropped Imp. Heat Sink. 01052_ Dropped Med. Matter Pod. 01055_ K-01 Serf destroyed. 01056_ W-25 Informer sends out distress signal. 01057_ ALERT: Hostiles spotted, dispatching reinforcements to Terminal M010. 01057_ C-30 ARC bursts open, deploying its payload. 01057_ S-10 Pest unfolds itself. 01059_ T-07 Excavator destroyed. Map ----- +----------------------------------------------------+ | ?????????????????????????????????????????????????? | | ?????????????????????????????????????????????????? | | ?????????????????????????????????????????????????? | | ?????????????????????????????????????????????????? | | ?????????????????????????????????????????????????? | | ?????????????????????????????????????????????????? | | ?????????????????????????????????????????????????? | | ?????????????????????????????????????????????????? | | ?????????????????????????????????????????????????? | | ?????????????????????????????????????????????????? | | ?????????????????????????????????????????????????? | | ?????????????????????????????????????????????????? | | ?????????????????????????????????????????????????? | | ????????????????????????????#????????????????????? | | ??????????????????????# """ #????????????????????? | | ??????????#???????????# """ +????????????????????? | | ??????????# ??????????# """ #????????????????????? | | ??????????# ?????????# """ #????????????????????? | | ??????????# ????????# """ #????????????????????? | | ?????????## #???????? #######??????????????? | | ??????+### "##########+### #??????????????? | | ????? "%" #??????????????? | | ??? T " !* #??????????????? | | ??? |%= #??????????????? | | ??????+### ###+########## #??????????????? | | ?????????###+????# gg s @#?## ##??????????????? | | ?????????????????# """ #??# #???????????????? | | ?????????????????# ] """ #??# * #???????????????? | | ?????????????????# g"""s#??#=%=#???????????????? | | ?????????????????# sss#??# ! #???????????????? | | ?????????????????# """ #??# ] #???????????????? | | ?????????????????# """s#??# ! #???????????????? | | ?????????????????# ! """s#??# #???????????????? | | ?????????????????# s #??# #???????????????? | | ?????????????????##########??# #???????????????? | | ???????????????????# ##### ##+####?????????? | | ???????????????????# ??? | | ???????????????????# ??? | | ???????????????????# ??? | | ???????????????????# ##########+##########???? | | ???????????????????## ##???????????????????????? | | ????????????????????# #????????????????????????? | | ????????#######?????# #????????????????????????? | | ????????# ####### #????????????????????????? | | ????????# #????????????????????????? | | ???????## #????????????????????????? | | ???????## #????????????????????????? | | ???????# [ ###########????????????????????????? | | ???????## #?????????????????????????????????? | | ???????# [ ][########???????????????????????????? | +----------------------------------------------------+ Best States ------------- Heat Dissipation 45 Energy Generation 12 Energy Capacity 265 Matter Stores 208 Matter Capacity 400 Sight Range 16 Terrain Scan Density 10 Evasion (%) 50 Recoil Reduction 2 Item Schematics ----------------- None Robot Schematics ------------------ None Fabricated ------------ Nothing Repaired ---------- Nothing Studied --------- None Alien Tech Used ----------------- None Achievements -------------- None Challenges ------------ None Game ------ Seed EtherialGuidedOptics Manual? 0 Play Time 00:10:21 Cumulative 34.3 hours Start 2025.11.23 @ 18:30:35 End 2025.11.23 @ 18:38:19 Sessions 1 Manual Loads 0 Difficulty Rogue Special Mode None Game No. 105 Rogue 105 Adventurer 0 Explorer 0 Win Type - Total 0 Types 0/0/0/0/0/0/0/0/0/0 Lore% 13 Gallery% 25 Achievement% 19 Wizard Run 0 Options --------- Layout 1 ASCII 0 Keyboard 0 Movement Mouse Keybinds 0 Fullscreen 1 Font 24/Terminus Map View 50x35 Zoom Use 0% Tactical HUD 1 Map Filters NONE Filters NONE Steam 1 RUN: 273e4aae-2805-4959-b47e-9d530425046a